[Event "*** SCC Grand Prix: Titled Tuesday Blitz"]
[Site "Chess.com"]
[Date "2020.07.21"]
[Round "3"]
[White "Vuk2000"]
[Black "IMHansNiemann"]
[Result "0-1"]
[WhiteElo "2607"]
[BlackElo "2964"]
[TimeControl "180+1"]
[EndTime "10:29:31 PDT"]
[Termination "IMHansNiemann won on time"]

1. d4 {[%clk 0:02:59.9]} 1... g6 {[%clk 0:02:52.6]} 2. e4 {[%clk 0:02:58.3]}
2... Bg7 {[%clk 0:02:51.8]} 3. Nf3 {[%clk 0:02:56.9]} 3... d6 {[%clk 0:02:51.9]}
4. Nc3 {[%clk 0:02:57]} 4... Nf6 {[%clk 0:02:51.9]} 5. Be2 {[%clk 0:02:57.2]}
5... O-O {[%clk 0:02:51.1]} 6. O-O {[%clk 0:02:57.8]} 6... Nc6 {[%clk
0:02:51.2]} 7. d5 {[%clk 0:02:56]} 7... Nb8 {[%clk 0:02:51.2]} 8. Be3 {[%clk
0:02:55.9]} 8... e5 {[%clk 0:02:51.5]} 9. dxe6 {[%clk 0:02:56.1]} 9... Bxe6
{[%clk 0:02:51.2]} 10. Qd2 {[%clk 0:02:51.8]} 10... Nc6 {[%clk 0:02:50.1]} 11.
Rfe1 {[%clk 0:02:51.4]} 11... d5 {[%clk 0:02:43.7]} 12. exd5 {[%clk 0:02:47.7]}
12... Nxd5 {[%clk 0:02:42.7]} 13. Nxd5 {[%clk 0:02:47.3]} 13... Qxd5 {[%clk
0:02:40.9]} 14. Qxd5 {[%clk 0:02:40.7]} 14... Bxd5 {[%clk 0:02:41.8]} 15. c3
{[%clk 0:02:41.2]} 15... Rad8 {[%clk 0:02:41.5]} 16. Nd2 {[%clk 0:02:38.8]}
16... Rd7 {[%clk 0:02:28.4]} 17. Nb3 {[%clk 0:02:24.9]} 17... b6 {[%clk
0:02:28]} 18. Bb5 {[%clk 0:02:25]} 18... a6 {[%clk 0:01:35.1]} 19. Bxa6 {[%clk
0:02:12.5]} 19... Ne5 {[%clk 0:01:33]} 20. Bb5 {[%clk 0:01:55]} 20... c6 {[%clk
0:01:16.7]} 21. Be2 {[%clk 0:01:55.2]} 21... b5 {[%clk 0:01:16.4]} 22. Nc5
{[%clk 0:01:48.7]} 22... Re7 {[%clk 0:01:08.8]} 23. a4 {[%clk 0:01:30.7]} 23...
bxa4 {[%clk 0:01:07.9]} 24. Nxa4 {[%clk 0:01:30.8]} 24... Rb8 {[%clk 0:01:05.6]}
25. Bc5 {[%clk 0:01:19.5]} 25... Re6 {[%clk 0:01:02.9]} 26. b4 {[%clk
0:01:18.3]} 26... Nd7 {[%clk 0:00:58.2]} 27. Be3 {[%clk 0:01:13.7]} 27... Bb3
{[%clk 0:00:55.2]} 28. Rec1 {[%clk 0:01:02.6]} 28... Ree8 {[%clk 0:00:33.8]} 29.
Ra3 {[%clk 0:00:53.1]} 29... Be6 {[%clk 0:00:27.1]} 30. Nc5 {[%clk 0:00:51]}
30... Nxc5 {[%clk 0:00:23.1]} 31. Bxc5 {[%clk 0:00:51.1]} 31... Rbd8 {[%clk
0:00:22.8]} 32. Bf3 {[%clk 0:00:49.2]} 32... Bd5 {[%clk 0:00:22.9]} 33. c4
{[%clk 0:00:38.1]} 33... Bxf3 {[%clk 0:00:20.8]} 34. Rxf3 {[%clk 0:00:37.2]}
34... Rd2 {[%clk 0:00:21.2]} 35. Re3 {[%clk 0:00:35.3]} 35... Red8 {[%clk
0:00:20.2]} 36. g3 {[%clk 0:00:34.2]} 36... Bf8 {[%clk 0:00:17.1]} 37. Bxf8
{[%clk 0:00:33.4]} 37... Kxf8 {[%clk 0:00:18]} 38. Rb3 {[%clk 0:00:33.7]} 38...
Rb8 {[%clk 0:00:16.2]} 39. b5 {[%clk 0:00:31.4]} 39... cxb5 {[%clk 0:00:16.5]}
40. cxb5 {[%clk 0:00:29.4]} 40... Rb6 {[%clk 0:00:16.8]} 41. Rc6 {[%clk
0:00:28.4]} 41... Rxc6 {[%clk 0:00:15.9]} 42. bxc6 {[%clk 0:00:29.3]} 42... Rc2
{[%clk 0:00:16.8]} 43. Rb8+ {[%clk 0:00:28]} 43... Ke7 {[%clk 0:00:16.7]} 44.
Rc8 {[%clk 0:00:28.3]} 44... Kd6 {[%clk 0:00:14.7]} 45. Rf8 {[%clk 0:00:27]}
45... Ke7 {[%clk 0:00:14.3]} 46. Rc8 {[%clk 0:00:25.3]} 46... Kd6 {[%clk
0:00:13.9]} 47. g4 {[%clk 0:00:24.8]} 47... Rxc6 {[%clk 0:00:13.4]} 48. Rh8
{[%clk 0:00:25.1]} 48... Rc4 {[%clk 0:00:08.4]} 49. h3 {[%clk 0:00:25]} 49... h5
{[%clk 0:00:08.1]} 50. gxh5 {[%clk 0:00:24.6]} 50... Rh4 {[%clk 0:00:08]} 51.
Kg2 {[%clk 0:00:23.3]} 51... Ke7 {[%clk 0:00:06.3]} 52. Kg3 {[%clk 0:00:18.7]}
52... g5 {[%clk 0:00:06.6]} 53. Rh6 {[%clk 0:00:09.1]} 53... f5 {[%clk
0:00:05.9]} 54. Rh7+ {[%clk 0:00:05]} 54... Kf6 {[%clk 0:00:06]} 55. Kg2 {[%clk
0:00:05.5]} 55... Ra4 {[%clk 0:00:03]} 56. Rh6+ {[%clk 0:00:05.1]} 56... Ke5
{[%clk 0:00:03.1]} 57. Rg6 {[%clk 0:00:05.6]} 57... Kf4 {[%clk 0:00:03.7]} 58.
Rc6 {[%clk 0:00:05.4]} 58... Ra8 {[%clk 0:00:03.3]} 59. h6 {[%clk 0:00:05.8]}
59... Rh8 {[%clk 0:00:02.8]} 60. Rc4+ {[%clk 0:00:06.3]} 60... Ke5 {[%clk
0:00:03.2]} 61. Rc6 {[%clk 0:00:07.2]} 61... f4 {[%clk 0:00:03]} 62. Kf3 {[%clk
0:00:07.3]} 62... Kf5 {[%clk 0:00:03.9]} 63. Rc5+ {[%clk 0:00:06.8]} 63... Kg6
{[%clk 0:00:04.5]} 64. Kg4 {[%clk 0:00:04.4]} 64... Rxh6 {[%clk 0:00:05]} 65.
Rc6+ {[%clk 0:00:04.6]} 65... Kg7 {[%clk 0:00:04.9]} 66. Rxh6 {[%clk 0:00:02.7]}
66... Kxh6 {[%clk 0:00:05.8]} 0-1

[Event "*** SCC Grand Prix: Titled Tuesday Blitz"]
[Site "Chess.com"]
[Date "2020.07.21"]
[Round "3"]
[White "AGW2016"]
[Black "DariaVoit"]
[Result "1/2-1/2"]
[WhiteElo "2249"]
[BlackElo "2506"]
[TimeControl "180+1"]
[EndTime "10:29:34 PDT"]
[Termination "Game drawn - insufficient material"]

1. d4 {[%clk 0:03:00.9]} 1... Nf6 {[%clk 0:03:00]} 2. c4 {[%clk 0:03:01.6]} 2...
e6 {[%clk 0:03:00.2]} 3. g3 {[%clk 0:03:00.8]} 3... c5 {[%clk 0:03:00]} 4. d5
{[%clk 0:03:00.5]} 4... exd5 {[%clk 0:03:00.9]} 5. cxd5 {[%clk 0:03:01]} 5... g6
{[%clk 0:03:01.5]} 6. Nc3 {[%clk 0:03:01.1]} 6... Bg7 {[%clk 0:03:02.1]} 7. Bg2
{[%clk 0:03:01.7]} 7... d6 {[%clk 0:03:02.7]} 8. Nf3 {[%clk 0:03:02.2]} 8... O-O
{[%clk 0:03:03.4]} 9. O-O {[%clk 0:02:58.4]} 9... Re8 {[%clk 0:03:03.4]} 10. Bf4
{[%clk 0:02:57.9]} 10... a6 {[%clk 0:03:01.8]} 11. a4 {[%clk 0:02:57.2]} 11...
Nh5 {[%clk 0:03:02.1]} 12. Bg5 {[%clk 0:02:56.9]} 12... Qc7 {[%clk 0:02:58.8]}
13. e4 {[%clk 0:02:56.1]} 13... Nd7 {[%clk 0:02:51.6]} 14. Re1 {[%clk
0:02:02.1]} 14... Rb8 {[%clk 0:02:49.3]} 15. a5 {[%clk 0:02:01.9]} 15... b5
{[%clk 0:02:40.5]} 16. axb6 {[%clk 0:02:02.8]} 16... Rxb6 {[%clk 0:02:40.5]} 17.
Ra2 {[%clk 0:01:53.7]} 17... Rb4 {[%clk 0:02:33.8]} 18. Bd2 {[%clk 0:01:25.8]}
18... Qb8 {[%clk 0:02:23]} 19. Na4 {[%clk 0:01:14.3]} 19... Rbxe4 {[%clk
0:02:20]} 20. Rxe4 {[%clk 0:01:11.8]} 20... Rxe4 {[%clk 0:02:20.9]} 21. Bc3
{[%clk 0:01:12.2]} 21... Re8 {[%clk 0:01:52.6]} 22. Bxg7 {[%clk 0:01:10.1]}
22... Nxg7 {[%clk 0:01:53.5]} 23. Nc3 {[%clk 0:01:09.7]} 23... Ne5 {[%clk
0:01:48.2]} 24. Nxe5 {[%clk 0:01:06.2]} 24... Rxe5 {[%clk 0:01:49.1]} 25. Bf1
{[%clk 0:01:05.2]} 25... Nf5 {[%clk 0:01:43.2]} 26. Ne2 {[%clk 0:00:17.3]} 26...
Qb4 {[%clk 0:01:24.7]} 27. Nf4 {[%clk 0:00:14.1]} 27... Re1 {[%clk 0:01:14.1]}
28. Qa4 {[%clk 0:00:11.1]} 28... Qxa4 {[%clk 0:00:49]} 29. Rxa4 {[%clk 0:00:12]}
29... Bd7 {[%clk 0:00:48.5]} 30. Ra3 {[%clk 0:00:04.5]} 30... Bb5 {[%clk
0:00:42.2]} 31. Nd3 {[%clk 0:00:05.1]} 31... Rb1 {[%clk 0:00:26.3]} 32. Kg2
{[%clk 0:00:04.8]} 32... Nd4 {[%clk 0:00:26.5]} 33. f4 {[%clk 0:00:04.2]} 33...
Kg7 {[%clk 0:00:22.2]} 34. Kf2 {[%clk 0:00:04.1]} 34... Nc2 {[%clk 0:00:14]} 35.
Rc3 {[%clk 0:00:03.7]} 35... Nb4 {[%clk 0:00:09.9]} 36. Nxb4 {[%clk 0:00:03.5]}
36... Rxf1+ {[%clk 0:00:09.5]} 37. Ke3 {[%clk 0:00:04.2]} 37... cxb4 {[%clk
0:00:10]} 38. Rc7 {[%clk 0:00:04.6]} 38... Re1+ {[%clk 0:00:10.2]} 39. Kd4
{[%clk 0:00:04.4]} 39... Re2 {[%clk 0:00:10.8]} 40. b3 {[%clk 0:00:03.4]} 40...
Rxh2 {[%clk 0:00:10.8]} 41. Rb7 {[%clk 0:00:04.1]} 41... Rd2+ {[%clk 0:00:11]}
42. Ke3 {[%clk 0:00:04]} 42... Re2+ {[%clk 0:00:11.2]} 43. Kf3 {[%clk
0:00:04.5]} 43... Rd2 {[%clk 0:00:11.4]} 44. Rb6 {[%clk 0:00:05.2]} 44... Rd3+
{[%clk 0:00:11.9]} 45. Kf2 {[%clk 0:00:05.3]} 45... Rxd5 {[%clk 0:00:12.4]} 46.
Rb7 {[%clk 0:00:05.5]} 46... Rd3 {[%clk 0:00:12.9]} 47. g4 {[%clk 0:00:05.1]}
47... Rxb3 {[%clk 0:00:13.5]} 48. g5 {[%clk 0:00:06]} 48... h6 {[%clk
0:00:13.8]} 49. Rb8 {[%clk 0:00:06.6]} 49... hxg5 {[%clk 0:00:14]} 50. fxg5
{[%clk 0:00:07.5]} 50... Bc4 {[%clk 0:00:14]} 51. Rb7 {[%clk 0:00:08.1]} 51...
d5 {[%clk 0:00:14.2]} 52. Rc7 {[%clk 0:00:08.7]} 52... a5 {[%clk 0:00:14.6]} 53.
Ra7 {[%clk 0:00:08.9]} 53... Ra3 {[%clk 0:00:14.6]} 54. Ke1 {[%clk 0:00:08.2]}
54... a4 {[%clk 0:00:14.9]} 55. Kd2 {[%clk 0:00:09.1]} 55... Ra2+ {[%clk
0:00:14.6]} 56. Ke3 {[%clk 0:00:08.9]} 56... a3 {[%clk 0:00:15]} 57. Kd4 {[%clk
0:00:09.8]} 57... Rd2+ {[%clk 0:00:15]} 58. Ke3 {[%clk 0:00:09.3]} 58... a2
{[%clk 0:00:15.6]} 59. Kxd2 {[%clk 0:00:08.9]} 59... b3 {[%clk 0:00:15.3]} 60.
Kc3 {[%clk 0:00:09]} 60... Kf8 {[%clk 0:00:15.3]} 61. Kb2 {[%clk 0:00:08.6]}
61... d4 {[%clk 0:00:14.2]} 62. Rd7 {[%clk 0:00:07.6]} 62... d3 {[%clk 0:00:13]}
63. Rd4 {[%clk 0:00:08.1]} 63... Ba6 {[%clk 0:00:06.8]} 64. Ra4 {[%clk
0:00:08.1]} 64... Bb5 {[%clk 0:00:06.1]} 65. Rb4 {[%clk 0:00:08.2]} 65... Ba6
{[%clk 0:00:05.5]} 66. Rd4 {[%clk 0:00:07.3]} 66... Ke7 {[%clk 0:00:04.2]} 67.
Ra4 {[%clk 0:00:06.3]} 67... Bb7 {[%clk 0:00:04.1]} 68. Rc4 {[%clk 0:00:06.7]}
68... Bd5 {[%clk 0:00:04.2]} 69. Rd4 {[%clk 0:00:06.7]} 69... Ke6 {[%clk
0:00:04.5]} 70. Rxd3 {[%clk 0:00:06.9]} 70... Be4 {[%clk 0:00:04.1]} 71. Re3
{[%clk 0:00:06.9]} 71... Kf5 {[%clk 0:00:03.8]} 72. Rxb3 {[%clk 0:00:07.4]}
72... Bb1 {[%clk 0:00:03.5]} 73. Rb7 {[%clk 0:00:07.2]} 73... Kxg5 {[%clk
0:00:03.8]} 74. Rxf7 {[%clk 0:00:07.3]} 74... Kh4 {[%clk 0:00:04.4]} 75. Rg7
{[%clk 0:00:07.5]} 75... g5 {[%clk 0:00:04.9]} 76. Rxg5 {[%clk 0:00:08]} 76...
Kxg5 {[%clk 0:00:05.1]} 77. Ka1 {[%clk 0:00:08.9]} 77... Kf4 {[%clk 0:00:04.7]}
78. Kb2 {[%clk 0:00:09.6]} 78... Ke3 {[%clk 0:00:05.6]} 79. Ka1 {[%clk
0:00:10.3]} 79... Kd4 {[%clk 0:00:06.3]} 80. Kb2 {[%clk 0:00:10.9]} 80... Kc4
{[%clk 0:00:06.9]} 81. Ka1 {[%clk 0:00:11.6]} 81... Kc5 {[%clk 0:00:07.6]} 82.
Kb2 {[%clk 0:00:12.2]} 82... a1=Q+ {[%clk 0:00:08.2]} 83. Kxa1 {[%clk
0:00:12.6]} 1/2-1/2

[Event "*** SCC Grand Prix: Titled Tuesday Blitz"]
[Site "Chess.com"]
[Date "2020.07.21"]
[Round "3"]
[White "Dedic8"]
[Black "mamey78"]
[Result "0-1"]
[WhiteElo "2761"]
[BlackElo "2511"]
[TimeControl "180+1"]
[EndTime "10:29:47 PDT"]
[Termination "mamey78 won by resignation"]

1. e4 {[%clk 0:03:00.9]} 1... e5 {[%clk 0:02:59]} 2. Nf3 {[%clk 0:03:01.2]} 2...
Nc6 {[%clk 0:02:58.9]} 3. Bb5 {[%clk 0:03:01.8]} 3... a6 {[%clk 0:02:58.4]} 4.
Ba4 {[%clk 0:03:02.1]} 4... Nf6 {[%clk 0:02:58.6]} 5. O-O {[%clk 0:03:02.1]}
5... b5 {[%clk 0:02:58.7]} 6. Bb3 {[%clk 0:03:02]} 6... Be7 {[%clk 0:02:58.7]}
7. Re1 {[%clk 0:02:58.2]} 7... O-O {[%clk 0:02:58]} 8. a4 {[%clk 0:02:58.4]}
8... d5 {[%clk 0:02:53.2]} 9. exd5 {[%clk 0:02:50.8]} 9... Na5 {[%clk
0:02:52.6]} 10. Ba2 {[%clk 0:02:37.9]} 10... Nxd5 {[%clk 0:02:51.2]} 11. Nxe5
{[%clk 0:02:33.3]} 11... Bb7 {[%clk 0:02:26.8]} 12. d4 {[%clk 0:02:31.7]} 12...
Nb4 {[%clk 0:02:23.7]} 13. Nc3 {[%clk 0:02:23.3]} 13... Nxa2 {[%clk 0:02:20.1]}
14. Rxa2 {[%clk 0:02:24.2]} 14... b4 {[%clk 0:02:17.9]} 15. Ne4 {[%clk
0:02:24.4]} 15... Bxe4 {[%clk 0:02:15.7]} 16. c4 {[%clk 0:01:07.2]} 16... Bc2
{[%clk 0:01:50.6]} 17. Qxc2 {[%clk 0:00:56.9]} 17... b3 {[%clk 0:01:48.3]} 18.
Qc3 {[%clk 0:00:57.5]} 18... bxa2 {[%clk 0:01:47.6]} 19. Bd2 {[%clk 0:00:58.2]}
19... Rb8 {[%clk 0:01:26.9]} 20. Qxa5 {[%clk 0:00:33.8]} 20... Rxb2 {[%clk
0:01:16.6]} 21. Nc6 {[%clk 0:00:29.2]} 21... Rb1 {[%clk 0:01:16.4]} 22. Nxd8
{[%clk 0:00:23.7]} 22... Rxd8 {[%clk 0:00:44.7]} 23. Qxc7 {[%clk 0:00:21.5]}
23... a1=Q {[%clk 0:00:41.1]} 24. Qxe7 {[%clk 0:00:21.4]} 24... Rxe1+ {[%clk
0:00:38.6]} 25. Bxe1 {[%clk 0:00:22.3]} 25... Qxd4 {[%clk 0:00:38.5]} 26. g3
{[%clk 0:00:19.4]} 26... h6 {[%clk 0:00:37]} 27. Bc3 {[%clk 0:00:19.1]} 27...
Qd1+ {[%clk 0:00:28.9]} 28. Kg2 {[%clk 0:00:19.6]} 28... Qd6 {[%clk 0:00:29.2]}
29. Qe4 {[%clk 0:00:16.8]} 29... Rc8 {[%clk 0:00:28.7]} 30. Qg4 {[%clk
0:00:11.8]} 30... Qc6+ {[%clk 0:00:27]} 31. Kg1 {[%clk 0:00:11.8]} 31... f6
{[%clk 0:00:16.4]} 32. c5 {[%clk 0:00:08]} 32... Qxc5 {[%clk 0:00:11.9]} 33.
Bxf6 {[%clk 0:00:08.6]} 33... Qc1+ {[%clk 0:00:11.5]} 34. Kg2 {[%clk 0:00:09.2]}
34... Qc6+ {[%clk 0:00:11.3]} 35. Kh3 {[%clk 0:00:09.8]} 35... Rc7 {[%clk
0:00:10]} 36. Be5 {[%clk 0:00:06.3]} 36... Rf7 {[%clk 0:00:09.5]} 37. Qe2 {[%clk
0:00:04]} 37... Qe6+ {[%clk 0:00:07.9]} 38. Kg2 {[%clk 0:00:03.6]} 38... Qd5+
{[%clk 0:00:07.7]} 39. f3 {[%clk 0:00:03.7]} 39... Re7 {[%clk 0:00:05.9]} 40.
Qxa6 {[%clk 0:00:03.8]} 40... Rxe5 {[%clk 0:00:04.9]} 41. Qc8+ {[%clk
0:00:04.4]} 41... Kh7 {[%clk 0:00:04.8]} 42. Qc2+ {[%clk 0:00:05.1]} 42... g6
{[%clk 0:00:03.2]} 43. Qc7+ {[%clk 0:00:05.2]} 43... Kg8 {[%clk 0:00:03.3]} 44.
Qc8+ {[%clk 0:00:05.9]} 44... Kg7 {[%clk 0:00:03.3]} 45. Qc7+ {[%clk 0:00:06.8]}
45... Kf6 {[%clk 0:00:03.1]} 46. Qb6+ {[%clk 0:00:06.5]} 46... Qe6 {[%clk
0:00:02.6]} 47. Qd8+ {[%clk 0:00:06.1]} 47... Qe7 {[%clk 0:00:02.7]} 48. Qd4
{[%clk 0:00:05.6]} 48... Kf7 {[%clk 0:00:01.7]} 49. Qc4+ {[%clk 0:00:05.1]}
49... Qe6 {[%clk 0:00:01.6]} 50. Qc7+ {[%clk 0:00:05.1]} 50... Qe7 {[%clk
0:00:02.2]} 51. Qc4+ {[%clk 0:00:05]} 51... Kg7 {[%clk 0:00:03.1]} 52. Qd4
{[%clk 0:00:05.7]} 52... Kh7 {[%clk 0:00:02.9]} 53. Qd3 {[%clk 0:00:01.6]} 53...
Re2+ {[%clk 0:00:03.8]} 54. Kf1 {[%clk 0:00:02.2]} 54... Re3 {[%clk 0:00:04.5]}
55. Qd2 {[%clk 0:00:02.3]} 55... Rxf3+ {[%clk 0:00:03.8]} 56. Kg2 {[%clk
0:00:03]} 56... Re3 {[%clk 0:00:04.4]} 57. Qd4 {[%clk 0:00:03.8]} 57... Re6
{[%clk 0:00:05]} 58. a5 {[%clk 0:00:03.8]} 58... Re4 {[%clk 0:00:04.9]} 59. Qd5
{[%clk 0:00:04.1]} 59... Re2+ {[%clk 0:00:04.7]} 60. Kf1 {[%clk 0:00:04.6]}
60... Re1+ {[%clk 0:00:03.5]} 61. Kg2 {[%clk 0:00:05.3]} 61... Qe4+ {[%clk
0:00:02.9]} 62. Qxe4 {[%clk 0:00:05.3]} 62... Rxe4 {[%clk 0:00:03.8]} 63. a6
{[%clk 0:00:06.2]} 63... Ra4 {[%clk 0:00:03.6]} 64. a7 {[%clk 0:00:07.1]} 64...
Rxa7 {[%clk 0:00:03.5]} 65. Kh3 {[%clk 0:00:07.3]} 65... Ra4 {[%clk 0:00:04.4]}
66. g4 {[%clk 0:00:07.6]} 66... g5 {[%clk 0:00:05.3]} 67. Kg3 {[%clk 0:00:08.1]}
67... Kg6 {[%clk 0:00:05.4]} 68. Kh3 {[%clk 0:00:09]} 68... Ra3+ {[%clk
0:00:06.3]} 69. Kg2 {[%clk 0:00:09.2]} 69... Kf6 {[%clk 0:00:07.2]} 70. h3
{[%clk 0:00:08.9]} 70... Ke5 {[%clk 0:00:08.1]} 71. h4 {[%clk 0:00:09.8]} 71...
Kf4 {[%clk 0:00:09]} 0-1

[Event "*** SCC Grand Prix: Titled Tuesday Blitz"]
[Site "Chess.com"]
[Date "2020.07.21"]
[Round "3"]
[White "Thee-Chessboy"]
[Black "anon569"]
[Result "0-1"]
[WhiteElo "2515"]
[BlackElo "2302"]
[TimeControl "180+1"]
[EndTime "10:29:54 PDT"]
[Termination "anon569 won by resignation"]

1. d4 {[%clk 0:03:00.9]} 1... Nf6 {[%clk 0:02:59.1]} 2. c4 {[%clk 0:03:01.4]}
2... e6 {[%clk 0:02:59.1]} 3. Nf3 {[%clk 0:03:01.9]} 3... Bb4+ {[%clk 0:02:59]}
4. Bd2 {[%clk 0:03:01.6]} 4... c5 {[%clk 0:02:58.7]} 5. Bxb4 {[%clk 0:02:57.8]}
5... cxb4 {[%clk 0:02:59]} 6. a3 {[%clk 0:02:57.7]} 6... bxa3 {[%clk 0:02:57]}
7. Nxa3 {[%clk 0:02:57.9]} 7... Nc6 {[%clk 0:02:57]} 8. g3 {[%clk 0:02:57.3]}
8... O-O {[%clk 0:02:56.6]} 9. Bg2 {[%clk 0:02:57.5]} 9... d6 {[%clk 0:02:56.9]}
10. O-O {[%clk 0:02:57.1]} 10... e5 {[%clk 0:02:56.6]} 11. dxe5 {[%clk
0:02:50.3]} 11... dxe5 {[%clk 0:02:55.7]} 12. Nb5 {[%clk 0:02:50.4]} 12... Be6
{[%clk 0:02:49.8]} 13. b3 {[%clk 0:02:40.1]} 13... Qb6 {[%clk 0:02:29.9]} 14.
Ng5 {[%clk 0:02:29.7]} 14... Bf5 {[%clk 0:02:00.9]} 15. Nc3 {[%clk 0:02:09.7]}
15... Rfd8 {[%clk 0:01:52]} 16. Nd5 {[%clk 0:02:09.2]} 16... Nxd5 {[%clk
0:01:46.6]} 17. Bxd5 {[%clk 0:02:08.1]} 17... Bg6 {[%clk 0:01:46.5]} 18. Nf3
{[%clk 0:01:31.1]} 18... Be4 {[%clk 0:01:02.8]} 19. Bxe4 {[%clk 0:01:17.5]}
19... Rxd1 {[%clk 0:00:59.6]} 20. Rfxd1 {[%clk 0:01:18.4]} 20... Rd8 {[%clk
0:00:55.7]} 21. Rxd8+ {[%clk 0:01:13.4]} 21... Nxd8 {[%clk 0:00:40.2]} 22. Rd1
{[%clk 0:01:11.2]} 22... f6 {[%clk 0:00:31.9]} 23. Rd7 {[%clk 0:01:05.3]} 23...
Kf8 {[%clk 0:00:31.8]} 24. Bxh7 {[%clk 0:00:56.4]} 24... Nc6 {[%clk 0:00:10.6]}
25. Nh4 {[%clk 0:00:48.4]} 25... Qxb3 {[%clk 0:00:08.1]} 26. Bd3 {[%clk
0:00:41.7]} 26... Nd4 {[%clk 0:00:04.9]} 27. Ng6+ {[%clk 0:00:35.4]} 27... Ke8
{[%clk 0:00:02.6]} 28. Re7+ {[%clk 0:00:35.2]} 28... Kd8 {[%clk 0:00:01.8]} 29.
Rxg7 {[%clk 0:00:35.4]} 29... Qd1+ {[%clk 0:00:02.4]} 30. Kg2 {[%clk 0:00:34.2]}
30... Nxe2 {[%clk 0:00:03.1]} 31. Bf5 {[%clk 0:00:19.8]} 31... Nd4 {[%clk
0:00:02.8]} 32. Rd7+ {[%clk 0:00:18.3]} 32... Ke8 {[%clk 0:00:02.9]} 33. Re7+
{[%clk 0:00:16.5]} 33... Kd8 {[%clk 0:00:03.2]} 34. Bh3 {[%clk 0:00:14.2]} 34...
Qf3+ {[%clk 0:00:02.3]} 35. Kg1 {[%clk 0:00:13.2]} 35... Qd1+ {[%clk 0:00:02.4]}
36. Kg2 {[%clk 0:00:13.2]} 36... Qf3+ {[%clk 0:00:03]} 37. Kg1 {[%clk
0:00:13.4]} 37... Ne2+ {[%clk 0:00:03.7]} 38. Kf1 {[%clk 0:00:13.5]} 38... Nd4
{[%clk 0:00:03.7]} 39. Rd7+ {[%clk 0:00:12.6]} 39... Ke8 {[%clk 0:00:04.1]} 40.
Kg1 {[%clk 0:00:12.7]} 40... Qd1+ {[%clk 0:00:03.4]} 41. Kg2 {[%clk 0:00:12.9]}
41... Qc2 {[%clk 0:00:04]} 42. Re7+ {[%clk 0:00:12.1]} 42... Kd8 {[%clk
0:00:04.3]} 43. Bd7 {[%clk 0:00:12.5]} 43... f5 {[%clk 0:00:03.2]} 44. Bxf5
{[%clk 0:00:11.7]} 44... Qxf5 {[%clk 0:00:03]} 45. Rg7 {[%clk 0:00:11.2]} 45...
Qf3+ {[%clk 0:00:03.1]} 46. Kh3 {[%clk 0:00:10.9]} 46... Ne2 {[%clk 0:00:03.2]}
47. Kh4 {[%clk 0:00:10.6]} 47... Qe4+ {[%clk 0:00:01.4]} 48. Kg5 {[%clk
0:00:10.5]} 48... Nd4 {[%clk 0:00:02]} 49. Rg8+ {[%clk 0:00:10]} 49... Kd7
{[%clk 0:00:01.7]} 50. Rg7+ {[%clk 0:00:10.1]} 50... Kc6 {[%clk 0:00:02.3]} 51.
h4 {[%clk 0:00:10.3]} 51... Kc5 {[%clk 0:00:02.9]} 52. h5 {[%clk 0:00:10.2]}
52... Ne6+ {[%clk 0:00:03.5]} 53. Kh6 {[%clk 0:00:10.3]} 53... Nxg7 {[%clk
0:00:04.1]} 54. Kxg7 {[%clk 0:00:11.1]} 54... Qg4 {[%clk 0:00:04.5]} 55. h6
{[%clk 0:00:11.2]} 55... Qd7+ {[%clk 0:00:04.9]} 56. Kf6 {[%clk 0:00:10.7]}
56... a5 {[%clk 0:00:05.3]} 57. Nxe5 {[%clk 0:00:07.3]} 57... Qd6+ {[%clk
0:00:05.4]} 58. Kf5 {[%clk 0:00:07]} 58... Qxh6 {[%clk 0:00:04.5]} 59. f4 {[%clk
0:00:06.6]} 59... Qh7+ {[%clk 0:00:04.6]} 60. Kg4 {[%clk 0:00:06]} 60... a4
{[%clk 0:00:05.2]} 61. f5 {[%clk 0:00:04.6]} 61... a3 {[%clk 0:00:05.7]} 62. f6
{[%clk 0:00:04.7]} 62... a2 {[%clk 0:00:06.3]} 63. f7 {[%clk 0:00:04.6]} 63...
Qg7+ {[%clk 0:00:06.8]} 64. Kf4 {[%clk 0:00:03.9]} 64... a1=Q {[%clk 0:00:07.2]}
65. Nd7+ {[%clk 0:00:01.9]} 65... Kd6 {[%clk 0:00:07.4]} 66. f8=Q+ {[%clk
0:00:01.6]} 66... Qxf8+ {[%clk 0:00:08]} 67. Nxf8 {[%clk 0:00:02.5]} 67... Qf6+
{[%clk 0:00:08.5]} 68. Kg4 {[%clk 0:00:02.3]} 68... Qxf8 {[%clk 0:00:09.1]} 0-1

[Event "*** SCC Grand Prix: Titled Tuesday Blitz"]
[Site "Chess.com"]
[Date "2020.07.21"]
[Round "4"]
[White "Bastiandash"]
[Black "BeanScreen"]
[Result "0-1"]
[WhiteElo "2353"]
[BlackElo "2689"]
[TimeControl "180+1"]
[EndTime "10:32:55 PDT"]
[Termination "BeanScreen won by checkmate"]

1. d4 {[%clk 0:03:00.9]} 1... d5 {[%clk 0:02:59.9]} 2. Nf3 {[%clk 0:02:57.3]}
2... Nf6 {[%clk 0:03:00.8]} 3. Bg5 {[%clk 0:02:57.8]} 3... Ne4 {[%clk
0:02:59.5]} 4. Bf4 {[%clk 0:02:58]} 4... Bf5 {[%clk 0:02:59]} 5. Nbd2 {[%clk
0:02:57.7]} 5... e6 {[%clk 0:02:58.8]} 6. e3 {[%clk 0:02:52.7]} 6... c5 {[%clk
0:02:58.2]} 7. Nxe4 {[%clk 0:02:44]} 7... Bxe4 {[%clk 0:02:58]} 8. Bd3 {[%clk
0:02:35.9]} 8... Bg6 {[%clk 0:02:56.1]} 9. Ne5 {[%clk 0:02:34.6]} 9... Bd6
{[%clk 0:02:53.3]} 10. Bb5+ {[%clk 0:02:32.8]} 10... Kf8 {[%clk 0:02:50]} 11.
O-O {[%clk 0:02:27.1]} 11... a6 {[%clk 0:02:50]} 12. Be2 {[%clk 0:02:23.4]}
12... Nc6 {[%clk 0:02:49.9]} 13. Nxg6+ {[%clk 0:02:13.9]} 13... hxg6 {[%clk
0:02:49.8]} 14. Bxd6+ {[%clk 0:02:13.7]} 14... Qxd6 {[%clk 0:02:50.7]} 15. c3
{[%clk 0:02:14.3]} 15... Qxh2# {[%clk 0:02:50.7]} 0-1

[Event "*** SCC Grand Prix: Titled Tuesday Blitz"]
[Site "Chess.com"]
[Date "2020.07.21"]
[Round "4"]
[White "deep306"]
[Black "cancrushyou"]
[Result "1-0"]
[WhiteElo "2578"]
[BlackElo "2355"]
[TimeControl "180+1"]
[EndTime "10:33:07 PDT"]
[Termination "deep306 won by resignation"]

1. d4 {[%clk 0:03:00.9]} 1... d5 {[%clk 0:02:58.9]} 2. c4 {[%clk 0:03:00.5]}
2... e6 {[%clk 0:02:59.4]} 3. Nc3 {[%clk 0:02:59.6]} 3... Bb4 {[%clk 0:02:59.1]}
4. cxd5 {[%clk 0:02:58.5]} 4... exd5 {[%clk 0:02:58.7]} 5. Bf4 {[%clk
0:02:59.2]} 5... c6 {[%clk 0:02:55.2]} 6. e3 {[%clk 0:02:59.7]} 6... Ne7 {[%clk
0:02:53.9]} 7. Bd3 {[%clk 0:02:42.8]} 7... O-O {[%clk 0:02:51.6]} 8. Ne2 {[%clk
0:02:41.9]} 8... f6 {[%clk 0:02:51.3]} 9. Qc2 {[%clk 0:02:40.3]} 9... g6 {[%clk
0:02:44.2]} 10. h4 {[%clk 0:02:39.3]} 10... Bf5 {[%clk 0:02:39.5]} 11. Bxf5
{[%clk 0:02:38.9]} 11... Nxf5 {[%clk 0:02:40.4]} 12. h5 {[%clk 0:02:39.3]} 12...
Bd6 {[%clk 0:02:27]} 13. hxg6 {[%clk 0:02:37.7]} 13... hxg6 {[%clk 0:02:26.3]}
14. g4 {[%clk 0:02:37.8]} 14... Ne7 {[%clk 0:02:26.3]} 15. O-O-O {[%clk
0:02:36.3]} 15... Kg7 {[%clk 0:02:21.6]} 16. Bh6+ {[%clk 0:02:35.7]} 1-0